{"text_format":"1","workbook":"xlsx","n_sheets":3,"sheets":["Lista de inventario","Lista De Selección De Invent...","Búsqueda de contenedores"],"not_rendered":{"charts":0,"images":0,"macros":1,"external_links":0,"defined_names":8,"comments":0,"pivot_tables":0},"unopened":[],"bounds":{"document_bytes":16777216,"sheet_cells":100000,"rows_first":2000,"rows_last":500,"rows_between":2000,"halvings":0,"cell_chars":16384,"cell_head_chars":4096},"cells_cut":0,"cells_raw":0,"read":"whole","date_system":"1900"}

{"sheet":"Lista de inventario","index":0,"n_rows":15,"n_cols":11,"rows_kept":15,"cut":false,"hidden":false,"merged":[]}
[null,"LISTA DE INVENTARIO"]
[null,"VALOR TOTAL DEL INVENTARIO:","ARTÍCULOS DEL INVENTARIO:","NÚMERO DE CONTENEDORES:","LISTA DE SELECCIÓN DE INVENTARIO","BÚSQUEDA DE CONTENEDORES"]
[null,{"$f":"SUM(ListaDeInventario[VALOR DE INVENTARIO])","v":4649},{"$f":"COUNTA(ListaDeInventario[DESCRIPCIÓN])","v":11},{"$f":"SUMPRODUCT((1/COUNTIF(ListaDeInventario[N.º DE CONTENEDOR],ListaDeInventario[N.º DE CONTENEDOR]&\"\")))","v":6}]
[null,"SKU","DESCRIPCIÓN","N.º DE CONTENEDOR","UBICACIÓN","UNIDAD","CANT.","CANT. DEL NUEVO PEDIDO","COSTO","VALOR DE INVENTARIO","NUEVO PEDIDO"]
[null,"SP7875","Artículo 1","T345",{"$f":"IFERROR(VLOOKUP(ListaDeInventario[[#This Row],[N.º DE CONTENEDOR]],BúsquedaDeContenedores[],3,FALSE),\"\")","v":"Fila 2, espacio 1"},"Unidad",20,10,30,{"$f":"ListaDeInventario[[#This Row],[CANT.]]*ListaDeInventario[[#This Row],[COSTO]]","v":600},{"$f":"IFERROR(IF(ListaDeInventario[[#This Row],[CANT.]]<=ListaDeInventario[[#This Row],[CANT. DEL NUEVO PEDIDO]],1,0),0)","v":0}]
[null,"TR87680","Artículo 2","T345",{"$f":"IFERROR(VLOOKUP(ListaDeInventario[[#This Row],[N.º DE CONTENEDOR]],BúsquedaDeContenedores[],3,FALSE),\"\")","v":"Fila 2, espacio 1"},"Unidad",30,15,40,{"$f":"ListaDeInventario[[#This Row],[CANT.]]*ListaDeInventario[[#This Row],[COSTO]]","v":1200},{"$f":"IFERROR(IF(ListaDeInventario[[#This Row],[CANT.]]<=ListaDeInventario[[#This Row],[CANT. DEL NUEVO PEDIDO]],1,0),0)","v":0}]
[null,"MK676554","Artículo 3","T5789",{"$f":"IFERROR(VLOOKUP(ListaDeInventario[[#This Row],[N.º DE CONTENEDOR]],BúsquedaDeContenedores[],3,FALSE),\"\")","v":"Fila 1, espacio 1"},"Unidad",10,5,5,{"$f":"ListaDeInventario[[#This Row],[CANT.]]*ListaDeInventario[[#This Row],[COSTO]]","v":50},{"$f":"IFERROR(IF(ListaDeInventario[[#This Row],[CANT.]]<=ListaDeInventario[[#This Row],[CANT. DEL NUEVO PEDIDO]],1,0),0)","v":0}]
[null,"YE98767","Artículo 4","T9876",{"$f":"IFERROR(VLOOKUP(ListaDeInventario[[#This Row],[N.º DE CONTENEDOR]],BúsquedaDeContenedores[],3,FALSE),\"\")","v":"Fila 3, espacio 2"},"Caja (10 uds.)",40,10,15,{"$f":"ListaDeInventario[[#This Row],[CANT.]]*ListaDeInventario[[#This Row],[COSTO]]","v":600},{"$f":"IFERROR(IF(ListaDeInventario[[#This Row],[CANT.]]<=ListaDeInventario[[#This Row],[CANT. DEL NUEVO PEDIDO]],1,0),0)","v":0}]
[null,"XR23423","Artículo 5","T098",{"$f":"IFERROR(VLOOKUP(ListaDeInventario[[#This Row],[N.º DE CONTENEDOR]],BúsquedaDeContenedores[],3,FALSE),\"\")","v":"Fila 3, espacio 1"},"Unidad",12,10,26,{"$f":"ListaDeInventario[[#This Row],[CANT.]]*ListaDeInventario[[#This Row],[COSTO]]","v":312},{"$f":"IFERROR(IF(ListaDeInventario[[#This Row],[CANT.]]<=ListaDeInventario[[#This Row],[CANT. DEL NUEVO PEDIDO]],1,0),0)","v":0}]
[null,"PW98762","Artículo 6","T345",{"$f":"IFERROR(VLOOKUP(ListaDeInventario[[#This Row],[N.º DE CONTENEDOR]],BúsquedaDeContenedores[],3,FALSE),\"\")","v":"Fila 2, espacio 1"},"Unidad",7,10,50,{"$f":"ListaDeInventario[[#This Row],[CANT.]]*ListaDeInventario[[#This Row],[COSTO]]","v":350},{"$f":"IFERROR(IF(ListaDeInventario[[#This Row],[CANT.]]<=ListaDeInventario[[#This Row],[CANT. DEL NUEVO PEDIDO]],1,0),0)","v":1}]
[null,"BM87684","Artículo 7","T349",{"$f":"IFERROR(VLOOKUP(ListaDeInventario[[#This Row],[N.º DE CONTENEDOR]],BúsquedaDeContenedores[],3,FALSE),\"\")","v":"Fila 1, espacio 2"},"Unidad",10,5,10,{"$f":"ListaDeInventario[[#This Row],[CANT.]]*ListaDeInventario[[#This Row],[COSTO]]","v":100},{"$f":"IFERROR(IF(ListaDeInventario[[#This Row],[CANT.]]<=ListaDeInventario[[#This Row],[CANT. DEL NUEVO PEDIDO]],1,0),0)","v":0}]
[null,"BH67655","Artículo 8","T5789",{"$f":"IFERROR(VLOOKUP(ListaDeInventario[[#This Row],[N.º DE CONTENEDOR]],BúsquedaDeContenedores[],3,FALSE),\"\")","v":"Fila 1, espacio 1"},"Unidad",19,10,3,{"$f":"ListaDeInventario[[#This Row],[CANT.]]*ListaDeInventario[[#This Row],[COSTO]]","v":57},{"$f":"IFERROR(IF(ListaDeInventario[[#This Row],[CANT.]]<=ListaDeInventario[[#This Row],[CANT. DEL NUEVO PEDIDO]],1,0),0)","v":0}]
[null,"WT98768","Artículo 9","T9875",{"$f":"IFERROR(VLOOKUP(ListaDeInventario[[#This Row],[N.º DE CONTENEDOR]],BúsquedaDeContenedores[],3,FALSE),\"\")","v":"Fila 2, espacio 2"},"Paquete (5 uds.)",20,30,14,{"$f":"ListaDeInventario[[#This Row],[CANT.]]*ListaDeInventario[[#This Row],[COSTO]]","v":280},{"$f":"IFERROR(IF(ListaDeInventario[[#This Row],[CANT.]]<=ListaDeInventario[[#This Row],[CANT. DEL NUEVO PEDIDO]],1,0),0)","v":1}]
[null,"TS3456","Artículo 10","T349",{"$f":"IFERROR(VLOOKUP(ListaDeInventario[[#This Row],[N.º DE CONTENEDOR]],BúsquedaDeContenedores[],3,FALSE),\"\")","v":"Fila 1, espacio 2"},"Unidad",15,8,60,{"$f":"ListaDeInventario[[#This Row],[CANT.]]*ListaDeInventario[[#This Row],[COSTO]]","v":900},{"$f":"IFERROR(IF(ListaDeInventario[[#This Row],[CANT.]]<=ListaDeInventario[[#This Row],[CANT. DEL NUEVO PEDIDO]],1,0),0)","v":0}]
[null,"WDG123","Artículo 11","T349",{"$f":"IFERROR(VLOOKUP(ListaDeInventario[[#This Row],[N.º DE CONTENEDOR]],BúsquedaDeContenedores[],3,FALSE),\"\")","v":"Fila 1, espacio 2"},"Unidad",25,15,8,{"$f":"ListaDeInventario[[#This Row],[CANT.]]*ListaDeInventario[[#This Row],[COSTO]]","v":200},{"$f":"IFERROR(IF(ListaDeInventario[[#This Row],[CANT.]]<=ListaDeInventario[[#This Row],[CANT. DEL NUEVO PEDIDO]],1,0),0)","v":0}]

{"sheet":"Lista De Selección De Invent...","index":1,"n_rows":9,"n_cols":9,"rows_kept":9,"cut":false,"hidden":false,"merged":[]}
[null,"LISTA DE SELECCIÓN DE INVENTARIO"]
[null,null,"LISTA DE INVENTARIO"]
[]
[null,"N.º DE PEDIDO","SKU","CANT. SELECCIONADA","CANT. DISPONIBLE","DESCRIPCIÓN DEL ARTÍCULO","UNIDAD","N.º DE CONTENEDOR","UBICACIÓN"]
[null,"TP001-1","SP7875",3,{"$f":"IFERROR(VLOOKUP(ListaDeSelecciónDeInventario[[#This Row],[SKU]],ListaDeInventario[],6,FALSE),\"\")","v":20},{"$f":"IFERROR(VLOOKUP(ListaDeSelecciónDeInventario[[#This Row],[SKU]],ListaDeInventario[],2,FALSE),\"\")","v":"Artículo 1"},{"$f":"IFERROR(VLOOKUP(ListaDeSelecciónDeInventario[[#This Row],[SKU]],ListaDeInventario[],5,FALSE),\"\")","v":"Unidad"},{"$f":"IFERROR(VLOOKUP(ListaDeSelecciónDeInventario[[#This Row],[SKU]],ListaDeInventario[],3,FALSE),\"\")","v":"T345"},{"$f":"IFERROR(VLOOKUP(ListaDeSelecciónDeInventario[[#This Row],[SKU]],ListaDeInventario[],4,FALSE),\"\")","v":"Fila 2, espacio 1"}]
[null,"TP001-1","YE98767",1,{"$f":"IFERROR(VLOOKUP(ListaDeSelecciónDeInventario[[#This Row],[SKU]],ListaDeInventario[],6,FALSE),\"\")","v":40},{"$f":"IFERROR(VLOOKUP(ListaDeSelecciónDeInventario[[#This Row],[SKU]],ListaDeInventario[],2,FALSE),\"\")","v":"Artículo 4"},{"$f":"IFERROR(VLOOKUP(ListaDeSelecciónDeInventario[[#This Row],[SKU]],ListaDeInventario[],5,FALSE),\"\")","v":"Caja (10 uds.)"},{"$f":"IFERROR(VLOOKUP(ListaDeSelecciónDeInventario[[#This Row],[SKU]],ListaDeInventario[],3,FALSE),\"\")","v":"T9876"},{"$f":"IFERROR(VLOOKUP(ListaDeSelecciónDeInventario[[#This Row],[SKU]],ListaDeInventario[],4,FALSE),\"\")","v":"Fila 3, espacio 2"}]
[null,"TP001-1","BM87684",2,{"$f":"IFERROR(VLOOKUP(ListaDeSelecciónDeInventario[[#This Row],[SKU]],ListaDeInventario[],6,FALSE),\"\")","v":10},{"$f":"IFERROR(VLOOKUP(ListaDeSelecciónDeInventario[[#This Row],[SKU]],ListaDeInventario[],2,FALSE),\"\")","v":"Artículo 7"},{"$f":"IFERROR(VLOOKUP(ListaDeSelecciónDeInventario[[#This Row],[SKU]],ListaDeInventario[],5,FALSE),\"\")","v":"Unidad"},{"$f":"IFERROR(VLOOKUP(ListaDeSelecciónDeInventario[[#This Row],[SKU]],ListaDeInventario[],3,FALSE),\"\")","v":"T349"},{"$f":"IFERROR(VLOOKUP(ListaDeSelecciónDeInventario[[#This Row],[SKU]],ListaDeInventario[],4,FALSE),\"\")","v":"Fila 1, espacio 2"}]
[null,"TP001-1","TS3456",6,{"$f":"IFERROR(VLOOKUP(ListaDeSelecciónDeInventario[[#This Row],[SKU]],ListaDeInventario[],6,FALSE),\"\")","v":15},{"$f":"IFERROR(VLOOKUP(ListaDeSelecciónDeInventario[[#This Row],[SKU]],ListaDeInventario[],2,FALSE),\"\")","v":"Artículo 10"},{"$f":"IFERROR(VLOOKUP(ListaDeSelecciónDeInventario[[#This Row],[SKU]],ListaDeInventario[],5,FALSE),\"\")","v":"Unidad"},{"$f":"IFERROR(VLOOKUP(ListaDeSelecciónDeInventario[[#This Row],[SKU]],ListaDeInventario[],3,FALSE),\"\")","v":"T349"},{"$f":"IFERROR(VLOOKUP(ListaDeSelecciónDeInventario[[#This Row],[SKU]],ListaDeInventario[],4,FALSE),\"\")","v":"Fila 1, espacio 2"}]
[null,"TP001-1","MK676554",3,{"$f":"IFERROR(VLOOKUP(ListaDeSelecciónDeInventario[[#This Row],[SKU]],ListaDeInventario[],6,FALSE),\"\")","v":10},{"$f":"IFERROR(VLOOKUP(ListaDeSelecciónDeInventario[[#This Row],[SKU]],ListaDeInventario[],2,FALSE),\"\")","v":"Artículo 3"},{"$f":"IFERROR(VLOOKUP(ListaDeSelecciónDeInventario[[#This Row],[SKU]],ListaDeInventario[],5,FALSE),\"\")","v":"Unidad"},{"$f":"IFERROR(VLOOKUP(ListaDeSelecciónDeInventario[[#This Row],[SKU]],ListaDeInventario[],3,FALSE),\"\")","v":"T5789"},{"$f":"IFERROR(VLOOKUP(ListaDeSelecciónDeInventario[[#This Row],[SKU]],ListaDeInventario[],4,FALSE),\"\")","v":"Fila 1, espacio 1"}]

{"sheet":"Búsqueda de contenedores","index":2,"n_rows":11,"n_cols":7,"rows_kept":11,"cut":false,"hidden":false,"merged":[]}
[null,"BÚSQUEDA DE CONTENEDORES"]
[null,"LISTA DE INVENTARIO"]
[]
[null,"N.º DE CONTENEDOR","DESCRIPCIÓN","UBICACIÓN","ANCHO","ALTO","LARGO"]
[null,"T345","Contenedor grande","Fila 2, espacio 1",50,10,10]
[null,"T5789","Contenedor pequeño","Fila 1, espacio 1",25,5,5]
[null,"T9876","Contenedor grande","Fila 3, espacio 2",50,10,10]
[null,"T098","Contenedor mediano","Fila 3, espacio 1",30,7,10]
[null,"T349","Contenedor pequeño","Fila 1, espacio 2",25,5,5]
[null,"T5789","Contenedor grande","Fila 4, espacio 5",50,10,10]
[null,"T9875","Contenedor grande","Fila 2, espacio 2",50,10,10]